[Event "1st Rio Chess Open 2022"]
[Site "Rio de Janeiro"]
[Date "2022.04.22"]
[Round "3.3"]
[White "Rodriguez Vila, Andres"]
[Black "Lima, Kleyton Alcantara"]
[Result "1-0"]
[ECO "B50"]
[WhiteElo "2435"]
[BlackElo "2080"]
[Annotator "TA"]
[PlyCount "89"]
[EventDate "2022.04.18"]
[EventType "swiss"]
[EventCountry "BRA"]
[SourceTitle "playchess.com"]
[Source "ChessBase"]
[SourceQuality "1"]
[TimeControl "5400+30"]

{[%evp 10,89,12,0,56,42,53,56,73,83,107,104,95,106,103,95,116,84,86,90,104,58,56,44,46,43,71,62,73,59,61,61,66,27,58,30,107,99,99,99,116,107,96,90,85,85,71,89,91,67,77,70,70,76,84,82,138,135,183,174,168,162,147,81,81,76,106,106,110,120,103,95,174,139,120,171,397,312,650,614,563,558]} 1. e4 {[%emt 0:00:04]} c5 {[%emt 0:05:12]} 2. Nf3 {[%emt 0:00:39]} e6 {[%emt 0:00:41]} 3. b3 {[%emt 0:00:16]} Nc6 {[%emt 0:01:10]} 4. Bb2 {[%emt 0:00:06]} d6 {[%emt 0:00:21]} 5. Bb5 {[%emt 0:00:17]} Bd7 {[%emt 0:01:03]} 6. O-O {[%emt 0:00:08]} e5 {[%emt 0:02:27] Inhibits d4. B50: Sicilian: 2...d6, Miscellaneous.} ({Black should try} 6... a6 $11 7. Bxc6 Bxc6) 7. c3 $14 {[%emt 0:05:01]} Nf6 {[%emt 0:01:25]} 8. d4 {[%emt 0:00:34]} Qc7 {[%emt 0:00:24] White is slightly better.} 9. Nbd2 {[%emt 0:02:50][%cal Bb1d2,Bd2c4,Bc4e3][%mdl 32] [#]} Nb8 $146 {[%emt 0:01:11]} ({Predecessor:} 9... a6 10. Bd3 Be7 11. Nc4 h6 12. Ne3 O-O 13. d5 Na7 14. c4 Nh7 15. h4 h5 {½-½ (45) Bergez,L (2395)-Boros,D (2465) Budapest 2006}) 10. Bd3 {[%emt 0:04:44]} Be7 {[%emt 0:02:08]} 11. Nc4 {[%emt 0:01:50][%cal Rd4e5]} Nc6 {[%emt 0:03:34]} 12. Ne3 {[%emt 0:01:47]} O-O {[%emt 0:01:59]} 13. Re1 {[%emt 0:00:17]} Rfe8 {[%emt 0:01:46]} 14. d5 {[%emt 0:05:12]} Nb8 {[%emt 0:03:20]} 15. Kh1 {[%emt 0:00:33]} ({Better is} 15. a4 $16) 15... Ng4 {[%emt 0:06:33]} 16. Qe2 {[%emt 0:00:58]} Nxe3 {[%emt 0:03:27]} 17. Qxe3 {[%emt 0:00:06]} Bg4 {[%emt 0:00:27]} 18. Ng1 {[%emt 0:01:20]} Bh5 {[%emt 0:04:19]} 19. Qh3 {[%emt 0:01:52]} Bg6 {[%emt 0:01:03]} 20. Ne2 {[%emt 0:02:27] White is more active.} Bg5 {[%emt 0:06:54]} 21. g3 {[%emt 0:00:16]} Qd7 {[%emt 0:00:11]} 22. Qg2 {[%emt 0:01:31] Black must now prevent f4.} Bh5 {[%emt 0:02:44]} (22... f5 $11 {remains equal.}) 23. f3 {[%emt 0:00:20] Threatens to win with h4.} Qe7 {[%emt 0:02:27]} 24. h4 {[%emt 0:05:28]} Bh6 {[%emt 0:00:14]} 25. Qf2 {[%emt 0:02:01]} f6 {[%emt 0:01:31]} 26. Rg1 {[%emt 0:00:37]} f5 {[%emt 0:03:06][%cal Oc5c4]} 27. exf5 {[%emt 0:00:28]} Bxf3+ {[%emt 0:00:03][%mdl 64] Remove Defender, Decoy} 28. Qxf3 {[%emt 0:03:06]} e4 {[%emt 0:00:02]} 29. f6 {[%emt 0:01:33]} exf3 {[%emt 0:00:54]} 30. fxe7 {[%emt 0:00:05] And now Nf4 would win.} fxe2 {[%emt 0:01:18]} 31. Bxe2 {[%emt 0:08:24][%cal Bd3e2,Be2g4,Bg4e6][%mdl 32]} Rxe7 {[%emt 0:01:42]} 32. Bg4 {[%emt 0:00:30]} Na6 {[%emt 0:00:45]} (32... Nd7 $142) 33. Rae1 $16 {[%emt 0:04:07]} Rae8 {[%emt 0:01:35]} (33... Rxe1 $16 34. Rxe1 Rf8 35. Be6+ Kh8) 34. Rxe7 $1 $18 {[%emt 0:06:51]} Rxe7 {[%emt 0:00:12]} 35. Be6+ {[%emt 0:00:04]} Kf8 {[%emt 0:00:22]} 36. c4 {[%emt 0:01:52]} (36. g4 $142 $1 {[%cal Rg4g5]}) 36... Nb4 $16 {[%emt 0:04:29]} 37. Kg2 $36 {[%emt 0:05:01][%mdl 2048] Black is under strong pressure.} a6 {[%emt 0:05:43]} 38. g4 {[%emt 0:01:12]} (38. Rf1+ Ke8 $14) 38... Nd3 {[%emt 0:07:50]} 39. Rf1+ {[%emt 0:01:09]} Ke8 {[%emt 0:03:18] [#]} 40. Bc3 {[%emt 0:00:33] Strongly threatening g5.} ({But not} 40. g5 {[#]} Bxg5 $1 41. hxg5 Nxb2 $15) 40... Nf4+ {[%emt 0:00:08]} (40... Be3 $16 {was called for.}) 41. Kf3 $18 {[%emt 0:00:12] Hoping for g5.} Nxe6 {[%emt 0:00:52]} 42. dxe6 {[%emt 0:00:02]} g6 $2 {[%emt 0:00:16]} (42... g5) 43. Re1 {[%emt 0:00:09]} Bg7 $2 {[%emt 0:00:31]} (43... Kf8 44. Bf6 Re8) 44. Bxg7 {[%emt 0:00:07]} Rxg7 {[%emt 0:00:05]} 45. Ke4 {[%emt 0:36:21] Weighted Error Value: White=0.11 (very precise) /Black=0.33} 1-0

[Event "1st Rio Chess Open 2022"]
[Site "Rio de Janeiro"]
[Date "2022.04.22"]
[Round "3.4"]
[White "Paulino, Domingos"]
[Black "Hoffman, Alejandro"]
[Result "0-1"]
[ECO "D94"]
[WhiteElo "2082"]
[BlackElo "2389"]
[Annotator "TA"]
[PlyCount "70"]
[EventDate "2022.04.18"]
[EventType "swiss"]
[EventCountry "BRA"]
[SourceTitle "playchess.com"]
[Source "ChessBase"]
[SourceQuality "1"]
[TimeControl "5400+30"]

{[%evp 25,70,-39,-43,-59,-62,-79,-64,-64,-59,-60,-60,-64,-55,-79,-91,-104,-101,-108,-100,-138,-144,-139,-136,-131,-131,-141,-145,-160,-131,-173,-171,-171,-171,-203,-165,-214,-177,-299,-299,-564,-548,-518,-510,-491,-475,-514,-466]} 1. d4 {[%emt 1:31:00]} c5 {[%emt 1:31:00]} 2. e3 {[%emt 0:00:30]} Nf6 {[%emt 0:00:30]} 3. Nf3 {[%emt 0:00:30]} g6 {[%emt 0:00:30]} 4. Be2 {[%emt 0:00:30]} Bg7 {[%emt 0:00:30]} 5. O-O {[%emt 0:00:30]} O-O {[%emt 0:00:30]} 6. c4 {[%emt 0:00:30]} cxd4 {[%emt 0:00:30]} 7. exd4 {[%emt 0:00:30]} d5 {[%emt 0:00:30]} 8. Nc3 {[%emt 0:00:30]} Nc6 {[%emt 0:00:30]} 9. h3 {[%emt 0:00:30]} b6 {[%emt 0:00:30]} 10. Bf4 {[%emt 0:00:30]} Bb7 {[%emt 0:00:30]} 11. Rc1 {[%emt 0:00:30]} dxc4 {[%emt 0:00:30]} 12. Bxc4 {[%emt 0:00:30]} Rc8 {[%emt 0:00:30]} 13. Be2 {[%emt 0:00:30]} Nd5 {[%emt 0:00:30]} 14. Nxd5 {[%emt 0:00:30] D94: Grünfeld: 4 Nf3 Bg7 5 e3.} Qxd5 {[%emt 0:00:30]} 15. Bc4 {[%emt 0:00:30]} Qf5 {[%emt 0:00:30]} 16. Be3 {[%emt 0:00:30] [#] Black is slightly better.} Na5 $146 {[%emt 0:00:30][%cal Bc6a5,Ba5c4,Bc4e3][%mdl 32]} ({Predecessor:} 16... Rfd8 17. Ng5 e6 18. Bd3 Qd5 19. Be4 Qd7 20. Qe2 Nxd4 21. Bxd4 Bxd4 22. Rcd1 Qe7 {0-1 (38) Von der Weth,C-Seils,G Salzwedel 1982}) 17. Be2 {[%emt 0:00:30]} Rxc1 {[%emt 0:00:30]} 18. Qxc1 {[%emt 0:00:30]} Rc8 {[%emt 0:00:30]} 19. Qd1 {[%emt 0:00:30][%cal Of3e5]} Nc4 {[%emt 0:00:30] White is on the road to losing.} 20. Qb3 {[%emt 0:00:30]} Nxe3 {[%emt 0:00:30] Black is much more active.} 21. Qxe3 {[%emt 0:00:30]} e6 {[%emt 0:00:30][%cal Be7e6,Be6e5][%mdl 32]} 22. Rc1 {[%emt 0:00:30] Prevents Qc2.} Rxc1+ {[%emt 0:00:30]} 23. Qxc1 {[%emt 0:00:30]} Bxf3 {[%emt 0:00:30]} 24. Bxf3 {[%emt 0:00:30]} ({Not} 24. Qc8+ $2 Bf8 25. gxf3 Qb1+ 26. Bf1 Qxb2) 24... Bxd4 {[%emt 0:00:30]} 25. b3 {[%emt 0:00:30]} h5 {[%emt 0:00:30][%cal Bh7h5,Bh5h4][%mdl 32]} 26. Qd1 {[%emt 0:00:30]} e5 {[%emt 0:00:30]} 27. Qe2 {[%emt 0:00:30]} h4 {[%emt 0:00:30]} 28. Qe4 {[%emt 0:00:30]} Qg5 {[%emt 0:00:30] [#] ( -> ...Qc1+)} 29. Qc2 {[%emt 0:00:30] Against Qc1+} Qf4 {[%emt 0:00:30]} 30. Bd5 {[%emt 0:00:30]} (30. b4 $142) 30... Kg7 {[%emt 0:00:30]} 31. Qe2 {[%emt 0:00:30]} (31. Kf1 {was necessary.}) 31... Qc1+ $19 {[%emt 0:00:30]} 32. Qf1 $2 {[%emt 0:00:30] [#]} (32. Kh2) 32... Bxf2+ $1 {[%emt 0:00:30][%mdl 512] Black is clearly winning.} 33. Kxf2 {[%emt 0:00:30]} Qc5+ {[%emt 0:00:30]} 34. Ke1 {[%emt 0:00:30]} Qxd5 {[%emt 0:00:30]} 35. Qf2 {[%emt 0:00:30]} Qe4+ {[%emt 0:00:30] Weighted Error Value: White=0.38/Black=0.06 (flawless)} 0-1

[Event "1st Rio Chess Open 2022"]
[Site "Rio de Janeiro"]
[Date "2022.04.22"]
[Round "3.5"]
[White "Cunha, Lucas Aguiar"]
[Black "Soares, Joao Carlos T. C."]
[Result "0-1"]
[ECO "B12"]
[WhiteElo "2328"]
[BlackElo "2064"]
[Annotator "TA"]
[PlyCount "154"]
[EventDate "2022.04.18"]
[EventType "swiss"]
[EventCountry "BRA"]
[SourceTitle "playchess.com"]
[Source "ChessBase"]
[SourceQuality "1"]
[TimeControl "5400+30"]

{[%evp 12,154,19,18,26,23,23,25,26,18,30,-8,-8,-66,-67,-62,-66,-119,-152,-146,-19,-78,-44,-28,-16,-28,0,-175,-173,-161,-162,-206,-158,-164,-135,-160,-169,-181,0,-213,-45,-174,-150,-139,-131,-208,-218,-216,-204,-319,-311,-307,-247,-305,-281,-319,-314,-306,-304,-427,-425,-434,-431,-455,-458,-454,-481,-462,-453,-439,-384,-750,-741,-1077,-1076,-945,-944,-1240,-1260,-1136,-1052,-1237,-1143,-1084,-1108,-2163,-1475,-29965,-29967,-8107,-8620,-29979,-29980,-29980,-29981,-29981,-29982,-29989,-29960,-29975,-1627,-29976,-29976,-29975,-1070,-1056,-1006,-999,-999,-972,-979,-1689,-1647,-1600,-4586,-29973,-29973,-29977,-1206,-801,0,-5657,-691,-29977,-29977,-29977,-29977,-29977,-29978,-29977,-29978,-29989,-29990,-29990,-29986,-29986,-29987,-29987,-29988,-29986,-29987,-29988,-29984,-29983,-29984]} 1. e4 {[%emt 0:11:06]} c6 {[%emt 0:01:24]} 2. d4 {[%emt 0:00:06]} d5 {[%emt 0:00:09]} 3. e5 {[%emt 0:00:03]} Bf5 {[%emt 0:00:13]} 4. c4 {[%emt 0:00:05]} e6 {[%emt 0:01:41]} 5. Nc3 {[%emt 0:00:05]} dxc4 {[%emt 0:02:02]} 6. Bxc4 {[%emt 0:00:07]} Nd7 {[%emt 0:00:20]} 7. Nge2 {[%emt 0:00:48]} h6 {[%emt 0:04:20] B12: Caro-Kann: Advance Variation.} 8. O-O {[%emt 0:00:21]} Ne7 {[%emt 0:00:33]} 9. Ng3 {[%emt 0:01:59]} Nb6 {[%emt 0:00:52] White has an edge.} 10. Bb3 {[%emt 0:00:07]} Bg6 {[%emt 1:23:56]} 11. f4 {[%emt 0:00:28] [#]} h5 $146 {[%emt 0:00:00]} ({Predecessor:} 11... Ned5 12. f5 exf5 13. Nxf5 Bxf5 14. Rxf5 g6 15. Rf2 Qd7 16. Ne4 O-O-O 17. Qf3 Rh7 {1-0 (59) Petrov,M (2457)-Villiers,T (2165) Newcastle on Tyne 2021}) 12. f5 {[%emt 0:06:44]} (12. Be3 $11) 12... Nxf5 $15 {[%emt 0:00:00]} 13. Nxf5 {[%emt 0:00:08]} Bxf5 {[%emt 0:00:00]} 14. Rxf5 {[%emt 0:00:31]} exf5 $17 {[%emt 0:00:00]} 15. Be3 {[%emt 0:08:24]} Qh4 {[%emt 0:00:00]} (15... Bb4 $17 {next ...g6 is good for Black.} 16. a3 Bxc3 17. bxc3 Nd5) 16. d5 {[%emt 0:03:10]} (16. Qd2 $11 Rd8 17. Rf1) 16... Qg4 {[%emt 0:00:00]} 17. Qf1 {[%emt 0:02:01][%cal Oc3b5] Threatens to win with Nb5!} Be7 {[%emt 0:00:00]} 18. h3 {[%emt 0:02:47]} Qg3 {[%emt 0:00:00]} 19. Bf4 {[%emt 0:01:30]} (19. Re1 $1 $11) 19... Bc5+ $19 {[%emt 0:00:00]} 20. Kh1 {[%emt 0:00:18]} Qf2 {[%emt 0:00:00]} 21. d6 {[%emt 0:02:37]} Qxf1+ {[%emt 0:00:00]} ({Not} 21... Qxb2 22. Ne2 $11) 22. Rxf1 {[%emt 0:58:05]} a5 {[%emt 0:00:00][%cal Ba7a5,Ba5a4][%mdl 32] And now ...a4 would win.} 23. a3 {[%emt 0:00:00]} a4 {[%emt 0:06:30]} 24. Ba2 {[%emt 0:00:00]} Bd4 $2 {[%emt 0:00:00]} (24... h4 $19 {...Rh7 is the strong threat.} 25. Bg5 g6) 25. e6 $2 {[%emt 0:00:00]} (25. Ne2 $1 $11 Bc5 26. Bg5) 25... Bxc3 $2 {[%emt 0:00:00]} (25... fxe6 $19 26. Bxe6 Rf8) 26. bxc3 {[%emt 0:00:00] [#]} (26. exf7+ $15 Kf8 27. bxc3) 26... Nd5 $1 {[%emt 0:00:00]} 27. Bxd5 {[%emt 0:00:00]} cxd5 $17 {[%emt 0:00:00][%mdl 4096] Endgame KRR-KRB} 28. Rb1 {[%emt 0:00:00]} (28. Re1 $17 {was called for.}) 28... fxe6 $19 {[%emt 0:00:00] Strongly threatening ...Rb8.} 29. Rxb7 {[%emt 0:00:00]} O-O {[%emt 0:00:00]} 30. d7 {[%emt 0:00:00]} (30. Bg5 {was necessary.}) 30... Rad8 {[%emt 0:00:22]} 31. Bg5 {[%emt 0:00:00]} Rf6 {[%emt 0:00:36]} 32. Kg1 {[%emt 0:00:00]} ({Much weaker is} 32. Bxf6 gxf6 33. c4 dxc4) 32... Kf7 {[%emt 0:00:21]} 33. Ra7 {[%emt 0:00:00]} Ke7 {[%emt 0:00:24][%cal Od8d7]} 34. Rxa4 {[%emt 0:00:00]} Rxd7 {[%emt 0:00:11][%cal Od7c7]} 35. Bf4 {[%emt 0:00:00]} (35. Rb4 $142) 35... Rf8 {[%emt 0:00:29]} 36. Be5 {[%emt 0:00:00]} g6 {[%emt 0:00:44]} 37. Kf2 {[%emt 0:00:00]} Rc8 {[%emt 0:00:18]} 38. Bd4 {[%emt 0:00:00]} Rdc7 {[%emt 0:00:51] Hoping for ...Kd6.} 39. Be5 {[%emt 0:00:00]} Rxc3 {[%emt 0:00:36]} 40. Ra7+ {[%emt 0:00:00]} Kf8 {[%emt 0:01:32]} 41. h4 $2 {[%emt 0:00:00]} (41. Bxc3 Rxc3 42. a4) 41... Rb3 {[%emt 0:00:43]} 42. a4 {[%emt 0:00:00]} Rc2+ {[%emt 0:00:31]} 43. Kg1 {[%emt 0:00:00]} Re3 {[%emt 0:00:48]} 44. Ra8+ {[%emt 0:00:00]} Ke7 {[%emt 0:00:24] ( -> ...Re1+)} 45. Ra7+ {[%emt 0:00:00]} Ke8 {[%emt 0:00:13]} 46. Ra8+ {[%emt 0:00:00]} Kd7 {[%emt 0:00:18]} 47. Ra7+ {[%emt 0:00:00]} Kc8 {[%emt 0:00:57]} 48. Bd4 {[%emt 0:00:00]} Ree2 {[%emt 0:00:24]} 49. Ra8+ {[%emt 0:00:00]} Kb7 {[%emt 0:00:30]} 50. Ra7+ {[%emt 0:00:00]} Kb8 {[%emt 0:00:43]} 51. Re7 {[%emt 0:00:00]} Rxg2+ {[%emt 0:00:09]} 52. Kf1 {[%emt 0:00:00]} Rgd2 {[%emt 0:00:56][%cal Rc2c1]} 53. Be5+ {[%emt 0:00:00]} Kc8 {[%emt 0:00:19][%cal Rc2c1]} 54. Bg3 {[%emt 0:00:00]} Rd1+ {[%emt 0:01:16]} 55. Be1 {[%emt 0:00:00]} Ra1 {[%emt 0:00:23]} (55... Rcc1 $142 56. Rxe6 d4 57. Kf2 d3 58. Ba5 Rc2+ 59. Kg3 Rf1 60. Re8+ Kb7 61. Re7+ Ka6 62. Bc7 d2 63. Rd7 d1=Q 64. Rxd1 Rc3+ 65. Rd3 Rxd3+ 66. Kg2 Ra1 67. Bg3 Ra2+ 68. Bf2 Ka5 69. Kg1 Rdd2 70. Kh1 Rxf2 71. Kg1 Kxa4 72. Kh1 Rf1#) 56. a5 {[%emt 0:00:00]} Rcc1 {[%emt 0:00:46]} 57. Rxe6 {[%emt 0:00:00] [#]} Rxa5 {[%emt 0:00:23]} (57... Rxe1+ $142 $1 58. Rxe1 Rxe1+ 59. Kxe1 d4 60. Kf2 f4 61. Kf3 d3 62. a6 Kb8 63. Kxf4 d2 64. Kg5 d1=Q 65. Kh6 Qd4 66. Kg5 Ka7 67. Kxg6 Qxh4 68. Kf5 Qg4+ 69. Kf6 h4 70. Kf7 h3 71. Kf6 h2 72. Ke7 h1=Q 73. Kf6 Qhe4 74. Kf7 Qh7+ 75. Kf8 Qgg8#) 58. Ke2 {[%emt 0:00:00]} Rc2+ {[%emt 0:00:42]} 59. Kd3 {[%emt 0:00:00]} Raa2 {[%emt 0:00:28]} 60. Rxg6 {[%emt 0:00:00]} Rg2 {[%emt 0:00:14]} 61. Rf6 {[%emt 0:00:00]} Rg4 {[%emt 0:00:50] aiming for ...Ra3+.} 62. Rxf5 {[%emt 0:00:00]} Ra3+ {[%emt 0:00:01]} 63. Kc2 {[%emt 0:00:00]} Rg2+ {[%emt 0:00:33]} 64. Kb1 {[%emt 0:00:00]} Rd3 {[%emt 0:00:41]} (64... Re2 $142 65. Rxh5 Rxe1+ 66. Kb2 Ra5 67. Rh6 Rc5 68. Rg6 d4 69. Rg3 Re2+ 70. Kb1 Rh2 71. h5 Rhxh5 72. Rg8+ Kb7 73. Rg7+ Kc6 74. Rf7 d3 75. Rf2 Kd5 76. Kb2 Ke4 77. Rf8 Rb5+ 78. Ka3 Kd4 79. Ra8 d2 80. Rd8+ Kc3 81. Rc8+ Rhc5 82. Rxc5+ Rxc5 83. Ka4 d1=Q+ 84. Ka3 Qb3#) 65. Kc1 {[%emt 0:00:00]} Ra3 {[%emt 0:00:42]} (65... Rd4 $142 66. Bf2 Re4) 66. Kb1 $1 {[%emt 0:00:00]} d4 {[%emt 0:00:33]} (66... Re2 $142 67. Rxh5 Rxe1+ 68. Kb2 Ra5 69. Rh8+ Kd7) 67. Rxh5 {[%emt 0:00:00]} Re3 {[%emt 0:00:28][%cal Re3e1] Black mates.} 68. Ba5 {[%emt 0:00:00]} Rb3+ {[%emt 0:00:34]} 69. Kc1 {[%emt 0:00:00]} Ra3 {[%emt 0:00:09][%cal Ra3a1]} 70. Kb1 {[%emt 0:00:00]} d3 {[%emt 0:00:26]} 71. Bb4 {[%emt 0:00:00]} Rb3+ {[%emt 0:00:07]} 72. Ka1 {[%emt 0:00:00]} Rg1+ {[%emt 0:00:21]} 73. Ka2 {[%emt 0:00:00]} Rxb4 {[%emt 0:00:08]} 74. Rd5 {[%emt 0:00:00]} Rg3 {[%emt 0:00:40]} 75. h5 {[%emt 0:00:00]} Rh4 {[%emt 0:00:05]} 76. Kb2 {[%emt 0:00:00]} Rgh3 {[%emt 0:00:11]} 77. Kc3 {[%emt 0:00:00]} Rxh5 {[%emt 0:00:02] Weighted Error Value: White=0.67/Black=0.27 (precise)} 0-1

[Event "1st Rio Chess Open 2022"]
[Site "Rio de Janeiro"]
[Date "2022.04.22"]
[Round "3.6"]
[White "Alboredo, Julia"]
[Black "De Carli Filho, Carlos"]
[Result "1-0"]
[ECO "B48"]
[WhiteElo "2252"]
[BlackElo "2054"]
[Annotator "TA"]
[PlyCount "41"]
[EventDate "2022.04.18"]
[EventType "swiss"]
[EventCountry "BRA"]
[SourceTitle "playchess.com"]
[Source "ChessBase"]
[SourceQuality "1"]
[TimeControl "5400+30"]

{[%evp 11,41,16,29,0,0,0,31,23,22,24,33,45,53,58,55,58,59,44,205,215,239,184,442,392,672,650,778,771,778,689,29998,29999]} 1. e4 {[%emt 0:04:05]} c5 {[%emt 0:03:39]} 2. Nf3 {[%emt 0:00:15]} e6 {[%emt 0:01:17]} 3. d4 {[%emt 0:00:08]} cxd4 {[%emt 0:00:04]} 4. Nxd4 {[%emt 0:00:10]} Nc6 {[%emt 0:00:05]} 5. Nc3 {[%emt 0:00:13]} Qc7 {[%emt 0:00:10]} 6. Be3 {[%emt 0:00:08]} a6 {[%emt 0:00:03]} 7. g4 $1 {[%emt 0:00:08][%mdl 4] is currently scoring better than 7.Qd2. B48: Sicilian: Taimanov: 5 Nc3 Qc7 6 Be3 a6 without Be2.} b5 {[%emt 0:03:11]} 8. Nxc6 {[%emt 0:00:07]} dxc6 {[%emt 0:04:48]} 9. Qf3 {[%emt 0:00:18] White is slightly better.} Bd6 {[%emt 0:11:53]} 10. O-O-O {[%emt 0:06:54][%cal Od1d6]} Ne7 {[%emt 0:00:30]} 11. h4 {[%emt 0:01:43][%cal Bh2h4,Bh4h5][%mdl 32] [#]} Bb7 $146 {[%emt 0:04:21]} ({Predecessor:} 11... Rb8 12. Rxd6 Qxd6 13. e5 Qc7 14. Ne4 O-O 15. Bc5 Bb7 16. Bd6 Qa5 17. Bd3 c5 18. Bxe7 c4 19. Nf6+ gxf6 20. Qxf6 h6 21. Qxh6 f5 22. exf6 {1-0 (22) Pichot,A (2630)-Sargsyan,A (2397) Belgrade 2021}) 12. h5 {[%emt 0:02:31]} h6 {[%emt 1:06:29]} 13. Kb1 {[%emt 0:05:23]} Be5 {[%emt 0:00:00]} 14. Bc5 {[%emt 0:00:50]} O-O $2 {[%emt 0:00:00] [#] This costs Black the game.} ({Better is} 14... Ng8 $1 $14) 15. g5 $1 $18 {[%emt 0:04:04]} hxg5 {[%emt 0:00:00]} 16. h6 $36 {[%emt 0:00:20][%mdl 2048] White is on the roll.} gxh6 $2 {[%emt 0:00:00]} (16... Ng6 {is a better defense.}) 17. Rxh6 {[%emt 0:01:07] Threatens to win with Qh5.} Rfd8 $2 {[%emt 0:00:00] [#]} (17... Kg7) 18. Bd3 $1 {[%emt 0:02:57]} Ng6 {[%emt 0:00:00]} 19. Rdh1 {[%emt 0:09:20] Qh5 is the strong threat.} Bg7 {[%emt 0:00:00]} 20. Qh5 {[%emt 0:01:29][%cal Oh6h8] Threatening mate with Rh8+!} Qe5 {[%emt 0:00:00] [#]} 21. Rh8+ $1 {[%emt 0:00:20][%mdl 512] Weighted Error Value: White=0.07 (flawless) /Black=0.95} 1-0